fUSD/lending_fUSD_20250521
["ID","MTS","AMOUNT","RATE_DAILY","PERIOD"]
[361801027,1747815047098,-1054.36,0.00035599,5]
[361801028,1747815047108,-1054.36,0.00035599,5]
[361801029,1747815047118,-1054.36,0.00035599,5]
[361801030,1747815047128,-1054.36,0.00035599,5]
[361801031,1747815047138,-1054.36,0.00035599,5]
[361801032,1747815047147,-1054.36,0.00035599,5]
[361801033,1747815047157,-1054.36,0.00035599,5]
[361801034,1747815047167,-1054.36,0.00035599,5]
[361801035,1747815047177,-1054.36,0.00035599,5]
[361801036,1747815047188,-1054.36,0.00035599,5]
[361801037,1747815047198,-1054.36,0.00035599,5]
[361801038,1747815047207,-1054.36,0.00035599,5]
[361801039,1747815047218,-1054.36,0.00035599,5]
[361801040,1747815047229,-1054.36,0.00035599,5]
[361801041,1747815047239,-1054.36,0.00035599,5]
[361801042,1747815047251,-1054.36,0.00035599,5]
[361801043,1747815047260,-1054.36,0.00035599,5]
[361801044,1747815047270,-1054.36,0.00035599,5]
[361801045,1747815047280,-1054.36,0.00035599,5]
[361801046,1747815047290,-1054.36,0.00035599,5]
[361801047,1747815047300,-1054.36,0.00035599,5]
[361801048,1747815047309,-1054.36,0.00035599,5]
[361801049,1747815047319,-1054.36,0.00035599,5]
[361801050,1747815047329,-1054.49056325,0.00035599,5]
[361801051,1747815047338,-305.91,0.000356,2]
[361801052,1747815047349,-5111.87460771,0.000356,2]
[361801053,1747815047359,-191.34178612,0.00035605,7]
[361801054,1747815047369,-174.49334606,0.00035605,7]
[361801055,1747815047379,-158.04436007,0.00035605,7]
[361801056,1747815047389,-206.78514577,0.00035605,7]
[361801057,1747815047399,-647.89437422,0.00035605,7]
[361801058,1747815047409,-262.38,0.00035605,2]
[361801059,1747815047430,-150.0,0.00035605,2]
[361801060,1747815047445,-1378.248898,0.00035605,7]
[361801061,1747815047455,-1378.248898,0.00035605,7]
[361801062,1747815047465,-397.0,0.00035605,5]
[361801063,1747815047475,-92523.0937355,0.00035606,2]
[361801064,1747815047487,-69949.7129856,0.00035606,2]
[361801065,1747815047498,-99299.07861983,0.00035606,2]
[361801066,1747815048464,-614.06943628,0.00035606,2]
[361801067,1747815135644,500.0,0.00030909,7]
[361801068,1747815137426,500.0,0.00027499,2]
[361801069,1747815137548,500.0,0.00031126,7]
[361801070,1747815142060,500.0,0.00028762,2]
[361801071,1747815518376,150.0,0.00013,5]
[361801075,1747816164165,-1285.436796,0.0001199,2]
[361801081,1747816231709,-176.67471874,0.000119,2]
[361801082,1747816231720,-517.16109767,0.000119,2]
[361801083,1747816231730,-300.0,0.00011989,2]
[361801084,1747816231740,-1200.0,0.00011989,2]
[361801085,1747816231750,-21233.83150359,0.0001199,2]
[361801086,1747816231762,-3258.284486,0.0001199,2]
[361801087,1747816231783,-396.3812676,0.0001199,2]
[361801088,1747816231807,-2322.07405507,0.0001199,2]
[361801089,1747816231820,-6417.8873467,0.0001199,2]
[361801090,1747816231832,-616.45,0.0001199,2]
[361801091,1747816231862,-2463.70307989,0.0001199,2]
[361801092,1747816231936,-523.22921007,0.0001199,2]
[361801094,1747816232063,-493.5826747,0.0001199,2]
[361801097,1747816232077,-3901.56464939,0.0001199,2]
[361801624,1747816237709,-300.0,0.00011989,2]
[361801626,1747816237720,-9477.92095778,0.0001199,2]
[361801628,1747816237730,-150.0,0.00011998,2]
[361801630,1747816237740,-500.0,0.00011999,2]
[361801632,1747816237750,-500.0,0.00011999,2]
[361801634,1747816237760,-500.0,0.00011999,2]
[361801637,1747816237775,-480.2247361,0.00011999,2]
[361801639,1747816237788,-19.7752639,0.00011999,2]
[361801641,1747816237798,-500.0,0.00011999,2]
[361801643,1747816237808,-500.0,0.00011999,2]
[361801646,1747816237819,-500.0,0.00011999,2]
[361801648,1747816237830,-500.0,0.00011999,2]
[361801650,1747816237840,-500.0,0.00011999,2]
[361801652,1747816237851,-500.0,0.00011999,2]
[361801654,1747816237864,-500.0,0.00011999,2]
[361801656,1747816237875,-500.0,0.00011999,2]
[361801658,1747816237885,-500.0,0.00011999,2]
[361801660,1747816237895,-500.0,0.00011999,2]
[361801662,1747816237905,-116.2247361,0.00011999,2]
[361801664,1747816237918,-383.7752639,0.00011999,2]
[361801666,1747816237929,-500.0,0.00011999,2]
[361801668,1747816237939,-78.3047361,0.00011999,2]
[361801671,1747816237951,-421.6952639,0.00011999,2]
[361801673,1747816237962,-500.0,0.00011999,2]
[361801675,1747816237973,-500.0,0.00011999,2]
[361801677,1747816237984,-500.0,0.00011999,2]
[361801679,1747816237994,-500.0,0.00011999,2]
[361801681,1747816238004,-166.75343485,0.00011999,2]
[361801684,1747816238015,-500.0,0.00011999,2]
[361801686,1747816238026,-500.0,0.00011999,2]
[361801688,1747816238036,-500.0,0.00011999,2]
[361801691,1747816238047,-500.0,0.00011999,2]
[361801693,1747816238057,-500.0,0.00011999,2]
[361801695,1747816238067,-500.0,0.00011999,2]
[361801697,1747816238077,-500.0,0.00011999,2]
[361801699,1747816238087,-500.0,0.00011999,2]
[361801701,1747816238098,-500.0,0.00011999,2]
[361801702,1747816238108,-500.0,0.00011999,2]
[361801704,1747816238118,-500.0,0.00011999,2]
[361801705,1747816238128,-500.0,0.00011999,2]
[361801706,1747816238138,-500.0,0.00011999,2]
[361801708,1747816238148,-500.0,0.00011999,2]
[361801710,1747816238158,-500.0,0.00011999,2]
[361801712,1747816238168,-500.0,0.00011999,2]
[361801714,1747816238179,-500.0,0.00011999,2]
[361801716,1747816238190,-500.0,0.00011999,2]
[361801719,1747816238200,-500.0,0.00011999,2]
[361801721,1747816238216,-500.0,0.00011999,2]
[361801723,1747816238226,-500.0,0.00011999,2]
[361801725,1747816238236,-500.0,0.00011999,2]
[361801727,1747816238246,-500.0,0.00011999,2]
[361801729,1747816238257,-500.0,0.00011999,2]
[361801731,1747816238267,-500.0,0.00011999,2]
[361801734,1747816238278,-500.0,0.00011999,2]
[361801736,1747816238288,-500.0,0.00011999,2]
[361801738,1747816238298,-500.0,0.00011999,2]
[361801740,1747816238308,-500.0,0.00011999,2]
[361801742,1747816238319,-500.0,0.00011999,2]
[361801744,1747816238329,-500.0,0.00011999,2]
[361801746,1747816238340,-500.0,0.00011999,2]
[361801748,1747816238350,-500.0,0.00011999,2]
[361801750,1747816238360,-500.0,0.00011999,2]
[361801752,1747816238369,-500.0,0.00011999,2]
[361801754,1747816238380,-500.0,0.00011999,2]
[361801756,1747816238390,-500.0,0.00011999,2]
[361801758,1747816238399,-500.0,0.00011999,2]
[361801760,1747816238410,-500.0,0.00011999,2]
[361801762,1747816238420,-500.0,0.00011999,2]
[361801764,1747816238429,-500.0,0.00011999,2]
[361801767,1747816238439,-500.0,0.00011999,2]
[361801769,1747816238449,-300.0,0.00011999,2]
[361801771,1747816238461,-500.0,0.00011999,2]
[361801773,1747816238471,-500.0,0.00011999,2]
[361801775,1747816238481,-500.0,0.00011999,2]
[361801777,1747816238491,-500.0,0.00011999,2]
[361801779,1747816238501,-500.0,0.00011999,2]
[361801781,1747816238511,-500.0,0.00011999,2]
[361801783,1747816238521,-500.0,0.00011999,2]
[361801785,1747816238531,-500.0,0.00011999,2]
[361801788,1747816238541,-500.0,0.00011999,2]
[361801790,1747816238552,-500.0,0.00011999,2]
[361801792,1747816238562,-500.0,0.00011999,2]
[361801794,1747816238572,-500.0,0.00011999,2]
[361801796,1747816238584,-500.0,0.00011999,2]
[361801798,1747816238594,-500.0,0.00011999,2]
[361801800,1747816238604,-500.0,0.00011999,2]
[361801802,1747816238615,-500.0,0.00011999,2]
[361801804,1747816238624,-500.0,0.00011999,2]
[361801806,1747816238634,-158374.53836762,0.00012,2]
[361801808,1747816238644,-128327.68974949,0.00012,2]
[361801815,1747816238703,-1062.43331544,0.00012,2]
[361801820,1747816238739,-699.53558535,0.00012,2]
[361801822,1747816238752,-213200.0,0.00012,2]
[361801825,1747816238764,-327071.28602707,0.00012,2]
[361801827,1747816238774,-506.61691915,0.00012,2]
[361801829,1747816238785,-219.49294545,0.00012972,2]
[361801831,1747816238795,-9198.90780248,0.00013072,2]
[361801833,1747816238809,-255.0,0.00013078,2]
[361801835,1747816238820,-240.0,0.00013161,2]
[361801837,1747816238830,-420.0,0.00013161,2]
[361801839,1747816238840,-1680.0,0.00013188,2]
[361801842,1747816238856,-8033.32949234,0.00013368,2]
[361801844,1747816238867,-160.22,0.00013699,2]
[361801845,1747816238877,-257.16638593,0.00013699,2]
[361801848,1747816238887,-258.0,0.00014254,2]
[361801850,1747816238898,-155.0,0.00014254,2]
[361801852,1747816238908,-2043.0,0.00014507,2]
[361801854,1747816238918,-176.67471866,0.00014646,2]
[361801856,1747816238929,-500.0,0.00014667,2]
[361801858,1747816238940,-501.45396094,0.00014667,2]
[361801916,1747816239520,-155.0,0.00014802,2]
[361801917,1747816239531,-250.0,0.00015,2]
[361801919,1747816239542,-1872.0,0.00015435,2]
[361801921,1747816239552,-9198.90780245,0.00015596,2]
[361801922,1747816239562,-273.76968739,0.000157,2]
[361801924,1747816239571,-273.76968734,0.000157,2]
[361801926,1747816239581,-273.76968734,0.000157,2]
[361801928,1747816239591,-273.76968734,0.000157,2]
[361801929,1747816239600,-517.16109766,0.000159,2]
[361801931,1747816239610,-273.76968734,0.00016486,2]
[361801933,1747816239620,-500.0,0.00016633,2]
[361801934,1747816239629,-273.76968734,0.00017383,2]
[361801935,1747816239639,-176.67471866,0.00017392,2]
[361801937,1747816239649,-2194.27,0.00017435,2]
[361801940,1747816239660,-9198.90780245,0.0001812,2]
[361801942,1747816239670,-500.69050641,0.00018127,2]
[361801944,1747816239680,-351.06,0.0001815,2]
[361801946,1747816239691,-273.76968734,0.00018279,2]
[361801947,1747816239702,-273.76968734,0.00019176,2]
[361801948,1747816239712,-220.56,0.00019691,2]
[361801949,1747816239722,-796.56876533,0.00019906,2]
[361801950,1747816239732,-356211.31037494,0.0002,4]
[361801951,1747816239741,-1134.87,0.0002,2]
[361801952,1747816239752,-273.76968734,0.00020072,2]
[361801953,1747816239761,-4000.0,0.00020483,4]
[361801955,1747816239771,-9198.90780245,0.00020645,2]
[361801956,1747816239781,-273.76968734,0.00020969,4]
[361801957,1747816239791,-200.0,0.00021,2]
[361801958,1747816239802,-273.76968734,0.00021866,6]
[361801959,1747816239818,-273.76968734,0.00022762,7]
[361801960,1747816239828,-9198.90780245,0.00023169,2]
[361801961,1747816239839,-273.76968734,0.00023659,9]
[361801962,1747816239849,-273.76968734,0.00024555,11]
[361801963,1747816239865,-283.53,0.0002479,2]
[361801964,1747816239875,-283.53,0.0002479,2]
[361801965,1747816239886,-331281.704328,0.000248,2]
[361801966,1747816239896,-151.0,0.000248,7]
[361801967,1747816239908,-151.0,0.000248,7]
[361801968,1747816239919,-151.0,0.000248,7]
[361801969,1747816239929,-151.0,0.000248,7]
[361801970,1747816239940,-151.0,0.000248,7]
[361801971,1747816239951,-151.0,0.000248,7]
[361801972,1747816239961,-283.53,0.0002489,2]
[361801973,1747816239972,-283.53,0.0002489,2]
[361801974,1747816239982,-283.53,0.0002489,2]
[361801975,1747816239991,-283.53,0.0002489,2]
[361801976,1747816240001,-283.53,0.0002489,2]
[361801977,1747816240010,-283.53,0.0002489,2]
[361801978,1747816240020,-283.53,0.0002489,2]
[361801979,1747816240029,-283.53,0.0002489,2]
[361801980,1747816240039,-285930.53512359,0.000249,2]
[361801986,1747816241024,-182.54520471,0.0001999,2]
[361801987,1747816241036,-35143.23052441,0.000249,2]
[361801988,1747816241046,-151.0,0.000249,7]
[361801989,1747816241057,-151.0,0.000249,7]
[361801990,1747816241068,-151.0,0.000249,7]
[361801991,1747816241079,-151.0,0.000249,7]
[361801992,1747816241090,-151.0,0.000249,7]
[361801993,1747816241100,-151.0,0.000249,7]
[361801994,1747816241111,-165.5,0.00025,5]
[361801995,1747816241122,-2174.41864033,0.00025,2]
[361801996,1747816241133,-200.0,0.000251,2]
[361801997,1747816241143,-273.76968734,0.00025452,13]
[361801998,1747816241161,-9198.90780245,0.00025693,2]
[361801999,1747816241172,-273.76968734,0.00026348,14]
[361802000,1747816241184,-4000.0,0.00026989,4]
[361802001,1747816241196,-273.76968734,0.00027245,16]
[361802002,1747816241207,-500.0,0.00027689,2]
[361802003,1747816241218,-258.62,0.00027773,4]
[361802004,1747816241230,-273.76968734,0.00028141,18]
[361802005,1747816241242,-10702.4588549,0.00028207,2]
[361802006,1747816241253,-9198.90780245,0.00028217,2]
[361802007,1747816241264,-500.0,0.00028284,2]
[361802008,1747816241274,-283.53,0.0002829,2]
[361802009,1747816241285,-3432.21,0.00028295,2]
[361802010,1747816241297,-1134.87,0.000283,7]
[361802011,1747816241307,-618.53,0.00028495,2]
[361802012,1747816241318,-217.0,0.0002865,2]
[361802013,1747816241329,-273.76968734,0.00029038,20]
[361802014,1747816241340,-418.5477491,0.000292,2]
[361802015,1747816241350,-217.0,0.0002938,2]
[361802016,1747816241361,-999.99,0.0002938,2]
[361802017,1747816241372,-1837.29489949,0.00029479,2]
[361802018,1747816241383,-500.0,0.00029824,2]
[361802019,1747816241395,-273.76968734,0.00029934,22]
[361802020,1747816241405,-2392.07499164,0.0003,3]
[361802021,1747816241416,-217.0,0.0003011,2]
[361802022,1747816241430,-453.52606196,0.00030137,2]
[361802023,1747816241440,-184.66,0.00030614,2]
[361802024,1747816241451,-9198.90780245,0.00030742,2]
[361802025,1747816241461,-618.53,0.00030759,2]
[361802026,1747816241471,-151.0,0.00030812,2]
[361802027,1747816241482,-151.0,0.00030812,2]
[361802028,1747816241493,-156.0,0.00030812,2]
[361802029,1747816241503,-207.4,0.00030812,2]
[361802030,1747816241514,-668.65185757,0.00030812,2]
[361802031,1747816241525,-1199.20597015,0.00030812,2]
[361802032,1747816241536,-99.04976285,0.00030812,2]
[361802033,1747816241630,-51.95023715,0.00030812,2]
[361802034,1747816241640,-668.65185757,0.00030812,2]
[361802035,1747816241651,-217.0,0.0003083,2]
[361802036,1747816241662,-1935.16,0.0003083,20]
[361802037,1747816241673,-8764.24,0.0003083,2]
[361802038,1747816241684,-273.76968734,0.00030831,23]
[361802039,1747816241694,-283.53,0.00030833,2]
[361802040,1747816241704,-2841.87053959,0.00030843,2]
[361802041,1747816241734,-1063.7,0.00030843,2]
[361802048,1747816243081,-517.16109766,0.000199,2]
[361802049,1747816243092,-176.67471866,0.00020137,2]
[361802050,1747816243103,-2421.90497447,0.00030843,2]
[361802063,1747816243243,-381.5,0.00030843,2]
[361802066,1747816243256,-4828.00516977,0.00030843,2]
[361802069,1747816243267,-1134.87,0.000309,7]
[361802071,1747816243277,-156.0,0.0003136,2]
[361802073,1747816243287,-151.0,0.0003136,2]
[361802077,1747816243297,-693.3919763,0.0003136,2]
[361802080,1747816243307,-217.0,0.0003156,2]
[361802083,1747816243316,-500.0,0.0003156,7]
[361802085,1747816243326,-273.76968734,0.00031728,25]
[361802087,1747816243336,-534.94939916,0.00031815,7]
[361802089,1747816243346,-25509.13811077,0.0003185,2]
[361802091,1747816243356,-2064.1874785,0.00031867,5]
[361802093,1747816243366,-156.0,0.00031908,2]
[361802095,1747816243378,-719.04747942,0.00031908,2]
[361802097,1747816243389,-283.53,0.00031957,2]
[361802099,1747816243400,-24032.75936055,0.00031967,30]
[361802101,1747816243410,-177.89,0.00031984,120]
[361802103,1747816243420,-156.587,0.00032181,2]
[361802105,1747816243429,-215.0738,0.00032181,2]
[361802108,1747816243439,-693.3919763,0.00032181,2]
[361802110,1747816243450,-1243.57659104,0.00032181,2]
[361802112,1747816243460,-4000.0,0.00032254,2]
[361802114,1747816243470,-217.0,0.0003229,2]
[361802116,1747816243479,-500.0,0.00032317,7]
[361802138,1747816243924,-200.0,0.00032351,2]
[361802139,1747816243941,-195.02,0.00032392,2]
[361802140,1747816243952,-1000.0,0.00032409,2]
[361802141,1747816243961,-157.64719075,0.00032456,2]
[361802142,1747816243971,-745.65223616,0.00032456,2]
[361802143,1747816243981,-250.0,0.00032563,2]
[361802144,1747816243991,-273.76968734,0.00032624,27]
[361802145,1747816244001,-156.79,0.00032681,2]
[361802146,1747816244010,-156.79,0.000327,2]
[361802147,1747816244020,-156.79,0.00032718,2]
[361802148,1747816244029,-156.79,0.00032736,2]
[361802149,1747816244039,-256.76,0.00032749,30]
[361802150,1747816244048,-156.79,0.00032754,2]
[361802151,1747816244058,-156.79,0.00032772,2]
[361802152,1747816244068,-156.79,0.0003279,2]
[361802153,1747816244078,-1134.87,0.000328,7]
[361802154,1747816244089,-156.79,0.00032809,2]
[361802155,1747816244099,-156.79,0.00032827,2]
[361802156,1747816244108,-156.79,0.00032845,2]
[361802157,1747816244117,-160.0,0.00033,2]
[361802158,1747816244127,-160.0,0.00033,2]
[361802159,1747816244137,-160.0,0.00033,2]
[361802160,1747816244147,-160.0,0.00033,2]
[361802161,1747816244156,-160.0,0.00033,2]
[361802162,1747816244166,-160.0,0.00033,2]
[361802163,1747816244175,-160.0,0.00033,2]
[361802164,1747816244185,-160.0,0.00033,2]
[361802165,1747816244195,-160.0,0.00033,2]
[361802166,1747816244204,-160.0,0.00033,2]
[361802167,1747816244214,-160.0,0.00033,2]
[361802168,1747816244225,-160.0,0.00033,2]
[361802169,1747816244235,-160.0,0.00033,2]
[361802170,1747816244244,-208.0,0.00033,2]
[361802171,1747816244253,-773.2413689,0.00033004,2]
[361802172,1747816244262,-217.0,0.0003302,2]
[361802173,1747816244271,-618.53,0.00033023,2]
[361802174,1747816244280,-283.53,0.00033256,2]
[361802175,1747816244289,-150.06,0.00033262,2]
[361802176,1747816244298,-9198.90780245,0.00033266,2]
[361802177,1747816244307,-151.0,0.00033266,7]
[361802178,1747816244317,-196.134542,0.00033266,7]
[361802179,1747816244327,-151.0,0.00033266,7]
[361802180,1747816244338,-151.203503,0.00033266,7]
[361802181,1747816244348,-151.0,0.00033266,7]
[361802182,1747816244358,-151.0,0.00033266,7]
[361802183,1747816244368,-151.0,0.00033266,7]
[361802184,1747816244377,-2872.841711,0.00033266,7]
[361802185,1747816244387,-151.0,0.00033266,7]
[361802186,1747816244397,-2872.841711,0.00033266,7]
[361802187,1747816244407,-151.0,0.00033266,7]
[361802188,1747816244417,-151.0,0.00033266,7]
[361802189,1747816244426,-151.0,0.00033266,7]
[361802190,1747816244436,-151.0,0.00033266,7]
[361802191,1747816244445,-211.93,0.00033459,2]
[361802192,1747816244457,-534.64,0.00033472,2]
[361802193,1747816244471,-4000.0,0.00033494,4]
[361802194,1747816244480,-154.87,0.000335,31]
[361802195,1747816244490,-166.31,0.00033502,30]
[361802196,1747816244500,-500.0,0.00033503,7]
[361802197,1747816244509,-273.76968734,0.00033521,29]
[361802198,1747816244519,-162.380719,0.0003355,2]
[361802199,1747816244530,-223.0315306,0.0003355,2]
[361802200,1747816244540,-719.04747942,0.0003355,2]
[361802201,1747816244550,-1289.58892491,0.0003355,2]
[361802202,1747816244559,-801.85129955,0.00033552,2]
[361802203,1747816244569,-503.12167428,0.00033612,7]
[361802204,1747816244579,-217.0,0.0003375,2]
[361802205,1747816244590,-200.0,0.0003375,2]
[361802206,1747816244600,-160.0,0.000339,6]
[361802207,1747816244609,-831.51979763,0.000341,2]
[361802208,1747816244620,-166.11,0.00034221,2]
[361802209,1747816244630,-160.22,0.00034247,2]
[361802210,1747816244639,-255.01,0.00034265,2]
[361802211,1747816244648,-172.04801024,0.0003438,2]
[361802212,1747816244659,-273.76968734,0.00034417,30]
[361802213,1747816244668,-217.0,0.0003448,2]
[361802214,1747816244678,-10167.37,0.00034486,2]
[361802215,1747816244687,-657.079129,0.00034547,4]
[361802216,1747816244697,-182.14,0.000346,2]
[361802217,1747816244706,-182.14,0.000346,2]
[361802218,1747816244717,-182.14,0.000346,2]
[361802219,1747816244726,-1514.11,0.000346,2]
[361802220,1747816244735,-1514.11,0.000346,2]
[361802221,1747816244745,-1514.11,0.000346,2]
[361802222,1747816244754,-500.0,0.00034644,7]
[361802223,1747816244763,-862.28603014,0.00034648,2]
[361802224,1747816244774,-182.14,0.000347,2]
[361802225,1747816244784,-1514.11,0.000347,2]
[361802226,1747816244793,-250.0,0.00034724,2]
[361802227,1747816244805,-283.53,0.0003479,2]
[361802228,1747816244815,-2064.18747851,0.000348,6]
[361802229,1747816244825,-182.14,0.000348,2]
[361802230,1747816244835,-652.78846509,0.000348,35]
[361802231,1747816244845,-8635.63265231,0.000348,2]
[361802232,1747816244858,-1514.11,0.000348,2]
[361802233,1747816244868,-172.04801024,0.00034826,2]
[361802234,1747816244878,-283.53,0.0003489,2]
[361802235,1747816244888,-283.53,0.0003489,2]
[361802236,1747816244899,-283.53,0.0003489,2]
[361802237,1747816244909,-500.0,0.000349,2]
[361802238,1747816244921,-34682.545,0.000349,2]
[361802239,1747816244932,-11162.03195807,0.000349,2]
[361802245,1747816245673,-51999.06754193,0.000349,2]
[361802246,1747816245684,-160.0,0.000349,10]
[361802247,1747816245693,-38759.82594116,0.000349,5]
[361802248,1747816245703,-151.0,0.000349,7]
[361802249,1747816245712,-151.0,0.000349,7]
[361802250,1747816245721,-281.233781,0.000349,7]
[361802251,1747816245731,-151.0,0.000349,7]
[361802252,1747816245740,-2872.841711,0.000349,7]
[361802253,1747816245750,-2872.841711,0.000349,7]
[361802254,1747816245760,-151.0,0.000349,7]
[361802255,1747816245769,-151.0,0.000349,7]
[361802256,1747816245779,-252.103264,0.000349,7]
[361802257,1747816245788,-153.966117,0.000349,7]
[361802258,1747816245798,-8635.63265224,0.0003491,2]
[361802259,1747816245809,-168.3888056,0.00034919,2]
[361802260,1747816245820,-231.28369723,0.00034919,2]
[361802261,1747816245830,-745.65223616,0.00034919,2]
[361802262,1747816245845,-1337.30371513,0.00034919,2]
[361802263,1747816245858,-1183.34,0.00034932,2]
[361802264,1747816245868,-283.53,0.0003499,2]
[361802265,1747816245878,-1028.0,0.00035,7]
[361802266,1747816245889,-16863.50778008,0.00035,120]
[361802267,1747816245899,-151.0,0.00035,7]
[361802268,1747816245909,-151.0,0.00035,7]
[361802269,1747816245921,-151.0,0.00035,7]
[361802270,1747816245931,-151.0,0.00035,7]
[361802271,1747816245942,-151.0,0.00035,7]
[361802272,1747816245952,-151.0,0.00035,7]
[361802273,1747816245962,-151.0,0.00035,7]
[361802274,1747816245972,-405.245546,0.00035,7]
[361802275,1747816245982,-405.245546,0.00035,7]
[361802276,1747816245992,-151.0,0.00035,7]
[361802277,1747816246002,-151.0,0.00035,7]
[361802278,1747816246012,-151.0,0.00035,7]
[361802279,1747816246022,-2872.841711,0.00035,7]
[361802280,1747816246034,-2872.841711,0.00035,7]
[361802281,1747816246044,-151.0,0.00035,7]
[361802282,1747816246054,-151.0,0.00035,7]
[361802283,1747816246064,-151.0,0.00035,7]
[361802284,1747816246075,-164.67679691,0.00035,120]
[361802285,1747816246089,-695.5502768,0.00035,10]
[361802286,1747816246100,-2026.89,0.00035,7]
[361802287,1747816246111,-8635.63265224,0.0003502,2]
[361802288,1747816246122,-8635.63265224,0.0003513,2]
[361802289,1747816246132,-500.74158499,0.00035133,7]
[361802290,1747816246142,-1175.036,0.00035135,2]
[361802291,1747816246154,-280.828,0.00035135,2]
[361802292,1747816246164,-4043.0,0.00035135,2]
[361802293,1747816246174,-1032.453,0.00035135,2]
[361802294,1747816246184,-6830.0,0.00035135,2]
[361802295,1747816246194,-1309.0,0.00035135,2]
[361802296,1747816246204,-799.0,0.00035135,2]
[361802297,1747816246214,-641.846,0.00035135,2]
[361802298,1747816246224,-841.0,0.00035135,2]
[361802299,1747816246234,-1460.168,0.00035141,41]
[361802300,1747816246244,-188.214,0.00035141,41]
[361802301,1747816246255,-150.052117,0.00035148,120]
[361802302,1747816246265,-150.052117,0.00035168,120]
[361802303,1747816246275,-150.052117,0.00035178,120]
[361802304,1747816246284,-150.052117,0.00035188,120]
[361802305,1747816246294,-894.19061326,0.00035196,2]
[361802306,1747816246305,-150.052117,0.00035198,120]
[361802307,1747816246315,-217.0,0.0003521,2]
[361802308,1747816246324,-283.53,0.0003523,2]
[361802309,1747816246338,-8635.63265224,0.0003524,2]
[361802310,1747816246348,-150.052117,0.00035248,120]
[361802311,1747816246359,-8054.70308048,0.0003525,2]
[361802312,1747816246369,-781.96717609,0.00035254,2]
[361802313,1747816246379,-150.052117,0.00035268,120]
[361802314,1747816246388,-172.04801024,0.00035273,2]
[361802315,1747816246398,-150.052117,0.00035278,120]
[361802317,1747816246409,-618.53,0.00035287,2]
[361802318,1747816246418,-150.052117,0.00035288,120]
[361802319,1747816246429,-150.052117,0.00035298,120]
[361802320,1747816246438,-273.76968734,0.00035314,32]
[361802321,1747816246452,-150.052117,0.00035348,120]
[361802322,1747816246463,-8635.63265224,0.0003535,2]
[361802323,1747816246473,-150.052117,0.00035378,120]
[361802324,1747816246482,-150.052117,0.00035378,120]
[361802325,1747816246491,-150.052117,0.00035388,120]
[361802326,1747816246501,-150.052117,0.00035398,120]
[361802327,1747816246511,-157.30090706,0.000354,2]
[361802328,1747816246522,-157.30090698,0.000354,2]
[361802329,1747816246532,-157.30090698,0.000354,2]
[361802330,1747816246541,-157.30090698,0.000354,2]
[361802331,1747816246551,-157.30090698,0.000354,2]
[361802332,1747816246562,-157.30090698,0.000354,2]
[361802333,1747816246571,-157.30090698,0.000354,2]
[361802334,1747816246581,-157.30090698,0.000354,2]
[361802335,1747816246594,-157.30090698,0.000354,2]
[361802336,1747816246604,-157.30090698,0.000354,2]
[361802337,1747816246614,-157.30090698,0.000354,2]
[361802338,1747816246624,-157.30090698,0.000354,2]
[361802339,1747816246633,-157.30090698,0.000354,2]